Cogmind - Beta 9.2 @@@ ROGUE MODE // 2019.11.14 @ 20:14:28 Player: Fleshy Vegetable Bird Result: Destroyed by S-27 Virus with Autogun Performance ------------- Evolutions (4) 2000 Regions Visited (13) 2600 Robots Destroyed (132) 660 Value Destroyed (3531) 3531 Prototype IDs (25) 500 Alien Tech Used (0) 0 Bonus (492) 492 TOTAL SCORE: 9783 Bonus ------- High Alert Combat Kills 222 Met Data Miner 300 Friendly Fire -30 Cogmind --------- Core Integrity 0/850 Matter 148/300 Energy 33/100 System Corruption 6% Temperature Cool (0) Movement Core (50) Location -5/Proximity Caves Parts ------- > --- POWER (2) -------- (None) > --- PROPULSION (4) --- (None) > --- UTILITY (7) ------ Improved Signal Interpreter Terrain Scan Processor Improved Light Armor Plating System Shield > --- WEAPON (2) ------- (None) > --- INVENTORY (4) ---- Fission Core Hardened Medium Armor Plating High-powered Shock Rifle EM Pulse Cannon Peak State ------------ > --- POWER ------------ Light Fission Core Light Fission Core > --- PROPULSION ------- Gravmag System Gravmag System Cooled Airjet Cooled Aerolev Unit > --- UTILITY ---------- Medium Storage Unit High-capacity Storage Unit High-capacity Storage Unit Advanced Weight Redist. System Long-range Terrain Scanner Terrain Scan Processor Hacking Suite > --- WEAPON ----------- Antimatter Cannon Heavy Pick > --- INVENTORY -------- Fission Core Light Fission Core Gravmag System Gravmag System Power Amplifier Advanced Sensor Array Long-range Terrain Scanner Advanced Targeting Computer Improved Particle Charger Improved Transmission Jammer Advanced ECM Suite Cloaking Device Light Armor Plating Hacking Suite System Shield Electrolaser Beamcaster EM Pulse Cannon EM Pulse Cannon EM Pulse Cannon Enhanced Autogun Assault Cannon Antimatter Cannon Missile Launcher [Rating: 64] Favorites ----------- Power Light Fission Core Engine Light Ion Engine Power Core Light Fission Core Propulsion Gravmag System Treads Light Treads Wheel Wheel Hover Unit Gravmag System Utility High-capacity Storage Unit Device Long-range Terrain Scanner Storage High-capacity Storage Unit Processor Terrain Scan Processor Hackware Hacking Suite Protection Light Armor Plating Weapon EM Pulse Cannon Energy Gun EM Shotgun Energy Cannon EM Pulse Cannon Ballistic Gun Assault Rifle Ballistic Cannon Antimatter Cannon Launcher Missile Launcher Special Weapon Mining Laser Impact Weapon Great Maul Piercing Weapon Heavy Pick Build | -11 -10 -10 -10 -9 -8 -7 -7 -7 -6 -6 -6 -6 -5 ------- Run | Scr Mat Min Exi Min Mat Fac Low Low Fac Low Low Dat Pro Slots Evolved 8 | . . . . . 4 2 . . 2 . . . . Power 1 | . . . . . . . . . 1 . . . . Propulsion 2 | . . . . . 1 . . . 1 . . . . Utility 5 | . . . . . 3 2 . . . . . . . Weapon . | . . . . . . . . . . . . . . Parts Attached 145 | 6 13 5 5 3 43 9 6 . 35 1 6 . 13 Power 16 | 1 1 1 . . 3 1 . . 8 . 1 . . Engine 5 | 1 1 1 . . 2 . . . . . . . . Core 11 | . . . . . 1 1 . . 8 . 1 . . Reactor . | . . . . . . . . . . . . . . Propulsion 29 | 2 3 2 . 1 8 3 . . 8 . 2 . . Treads 1 | . . . . . 1 . . . . . . . . Leg . | . . . . . . . . . . . . . . Wheel 17 | 2 3 2 . 1 7 2 . . . . . . . Hover 11 | . . . . . . 1 . . 8 . 2 . . Flight . | . . . . . . . . . . . . . . Utility 34 | 1 2 . 3 . 9 3 . . 3 1 1 . 11 Device 10 | . . . . . 1 1 . . 2 1 . . 5 Storage 8 | 1 2 . 3 . 2 . . . . . . . . Processor 4 | . . . . . . 1 . . 1 . 1 . 1 Hackware 4 | . . . . . . 1 . . . . . . 3 Protection 8 | . . . . . 6 . . . . . . . 2 Artifact . | . . . . . . . . . . . . . . Weapon 66 | 2 7 2 2 2 23 2 6 . 16 . 2 . 2 Energy Gun 17 | . 1 . 2 2 11 . 1 . . . . . . Energy Cannon 14 | . . . . . 6 1 2 . 4 . 1 . . Ballistic Gun 11 | 2 3 . . . 3 1 2 . . . . . . Ballistic Cannon 5 | . . . . . . . . . 4 . . . 1 Launcher 10 | . 2 1 . . 3 . 1 . 2 . 1 . . Special Weapon 3 | . 1 1 . . . . . . 1 . . . . Impact Weapon 3 | . . . . . . . . . 3 . . . . Slashing Weapon . | . . . . . . . . . . . . . . Piercing Weapon 3 | . . . . . . . . . 2 . . . 1 Special Melee Weapon . | . . . . . . . . . . . . . . Unidentified Prototypes 10 | . . . . . 6 1 . . 2 . . . 1 Parts Lost 45 | . . 1 . 2 9 . 4 . 8 . 6 . 15 Power 7 | . . . . . 2 . 1 . 1 . 2 . 1 Propulsion 12 | . . 1 . . 2 . 1 . 3 . 2 . 3 Utility 12 | . . . . . 1 . . . 2 . 2 . 7 Weapon 14 | . . . . 2 4 . 2 . 2 . . . 4 Highest Loss Streak 6 | . . 1 . 1 3 . 3 . 4 . 3 . 6 Average Slot Usage (%) 89 | . 99 94 100 100 94 99 92 69 92 100 90 80 56 Engine 4 | . 14 14 14 14 7 . . . . . . . . Core 4 | . . . . . 1 7 . . 10 13 10 6 . Wheel 13 | . 27 23 28 28 23 19 23 15 1 . . . . Hover 8 | . . . . . . . . . 20 26 23 20 4 Device 6 | . . . . . 3 7 7 7 11 13 10 6 10 Storage 24 | . 27 28 28 28 29 30 30 30 21 20 20 20 17 Processor 6 | . . . . . . 7 7 7 6 13 11 13 15 Hackware 1 | . . . . . . 3 7 7 5 . . . . Protection 1 | . . . . . 10 3 . . . . . . . Energy Gun 3 | . . . 24 28 8 . 1 . . . . . . Energy Cannon 2 | . . . . . 7 15 4 . 3 . 1 6 1 Ballistic Gun 4 | . 26 16 1 . . . 7 . . . . . . Ballistic Cannon 1 | . . . . . . . . . 2 6 3 . 3 Launcher 1 | . . 7 1 . 1 . . . 1 . 2 6 2 Piercing Weapon 1 | . . . . . . . . . 2 6 4 . . Naked Turns . | . . . . . . . . . . . . . . Heaviest Build 127 | 10 41 41 73 73 127 126 116 106 123 100 100 93 96 Greatest Support 59 | 26 26 26 20 20 36 40 40 28 59 50 56 56 56 Greatest Overweight (x) 38 | . 3 2 3 3 38 10 9 3 7 1 2 1 27 Average Overweight (x) 2 | . . 1 2 3 3 3 8 3 1 1 1 1 12 Largest Inventory Capacity 32 | 6 16 16 20 20 32 32 32 32 32 24 24 24 24 Average Capacity 23 | 5 15 16 17 20 28 32 32 32 25 24 24 24 22 Most Carried 32 | 5 16 16 17 20 32 32 32 32 32 23 24 21 24 Average Carried 22 | 3 13 15 16 16 27 31 32 32 25 23 22 21 21 Final Capacity 32 | 6 16 16 20 20 32 32 32 32 24 24 24 24 4 Final Carried 32 | 5 16 15 17 20 32 32 32 32 24 23 21 21 4 Class Distribution -------------------- 62% | Hauler-Mutant 18% | Hauler-Assassin 17% | Mutant Dominant Class ---------------- Mutant | -10/Materials Mutant | -10/Mines Hauler-Mutant | -10/Exiles Hauler-Mutant | -9/Mines Hauler-Mutant | -8/Materials Hauler-Mutant | -7/Factory Hauler-Mutant | -7/Lower Caves Hauler-Mutant | -7/Lower Caves Hauler-Mutant | -6/Factory Hauler-Assassin | -6/Lower Caves Hauler-Assassin | -6/Lower Caves Hauler-Mutant | -6/Data Miner Hauler-Mutant | -5/Proximity Caves Resources | -11 -10 -10 -10 -9 -8 -7 -7 -7 -6 -6 -6 -6 -5 ----------- Run | Scr Mat Min Exi Min Mat Fac Low Low Fac Low Low Dat Pro Matter Collected 2820 | 276 306 234 . 82 589 . 138 29 301 268 290 . 307 Remotely . | . . . . . . . . . . . . . . Salvage Created 4014 | 128 405 145 . 774 1756 . 85 . 392 25 118 . 186 Parts 237 | 5 37 15 . 28 106 . 1 . 31 2 5 . 7 Haulers Intercepted 6 | . 2 . . . 4 . . . . . . . . Recyclers Shooed 2 | . 1 . . 1 . . . . . . . . . Parts Field Recycled . | . . . . . . . . . . . . . . Retrieved Matter . | . . . . . . . . . . . . . . Parts Self-Destructed 10 | . . . . . . . 1 . . . 3 . 6 Prevented . | . . . . . . . . . . . . . . Kills | -11 -10 -10 -10 -9 -8 -7 -7 -7 -6 -6 -6 -6 -5 ------- Run | Scr Mat Min Exi Min Mat Fac Low Low Fac Low Low Dat Pro Combat Hostiles Destroyed 95 | . 14 9 . 8 32 . 2 . 11 . 7 . 12 Melee 1 | . . . . . . . . . 1 . . . . Guns 38 | . 14 3 . 6 14 . 1 . . . . . . Cannons 13 | . . . . . 4 . . . 4 . 1 . 4 AOE 41 | . . 6 . 2 13 . 1 . 5 . 6 . 8 Classes Destroyed 17 | 2 5 . . 1 6 . 1 . . 1 . . 1 Worker 6 | . 1 1 . 1 1 . . . 2 . . . . Builder 1 | . . . . . 1 . . . . . . . . Tunneler 2 | 1 . . . . . . . . 1 . . . . Hauler 6 | . 2 . . . 4 . . . . . . . . Recycler 9 | 1 . . . 5 3 . . . . . . . . Mechanic 1 | . . . . . 1 . . . . . . . . Operator 5 | . 1 . . . 3 . . . 1 . . . . Watcher 6 | . . . . . 5 . . . 1 . . . . Swarmer 47 | . 11 9 . 2 9 . . . 7 . 4 . 5 Grunt 27 | . 3 . . 5 13 . 1 . 2 . 2 . 1 Brawler 3 | . . . . 1 1 . . . . . 1 . . Duelist 1 | . . . . . 1 . . . . . . . . Protector 1 | . . . . . 1 . . . . . . . . Sentry 9 | . . . . . 7 . . . 1 . . . 1 Hunter 3 | . . . . . . . . . . . . . 3 Programmer 4 | . . . . . . . 1 . 1 . . . 2 Samaritan 1 | . . . . . . . . . . 1 . . . Best Kill Streak 8 | 2 8 3 . 3 8 . 1 . 6 . 4 . 5 Combat Bots Only 7 | . 7 3 . 2 5 . 1 . 4 . 4 . 5 Max Kills in Single Turn 3 | 1 2 3 . 1 3 . 1 . 2 1 2 . 2 Gunslinging . | . . . . . . . . . . . . . . Exploded 3 | . . 3 . 1 3 . 1 . 2 . 2 . 2 Melee 1 | . . . . . . . . . 1 . . . . Uniques/NPCs Destroyed . | . . . . . . . . . . . . . . Combat | -11 -10 -10 -10 -9 -8 -7 -7 -7 -6 -6 -6 -6 -5 -------- Run | Scr Mat Min Exi Min Mat Fac Low Low Fac Low Low Dat Pro Damage Taken 7196 | . 343 299 . 215 1933 12 763 . 1455 . 613 . 1563 Core 1441 | . 77 66 . 27 238 12 168 . 251 . 114 . 488 Absorbed by Shields . | . . . . . . . . . . . . . . Core Remaining (%) 65 | 100 . . . 32 56 . . 74 . . . . . Volleys Fired 310 | 4 61 20 . 31 104 1 12 . 27 . 14 . 36 Largest 2 | 2 2 2 . 2 2 2 2 . 2 . 1 . 2 Hottest 131 | 40 100 53 . 90 126 126 131 . 126 . 63 . 99 Shots Fired 517 | 8 110 40 . 61 184 2 20 . 36 2 14 . 40 Gun 332 | 8 98 33 . 61 120 . 12 . . . . . . Cannon 111 | . . . . . 43 2 7 . 33 2 1 . 23 Launcher 62 | . . 7 . . 21 . 1 . 3 . 13 . 17 Special 12 | . 12 . . . . . . . . . . . . Kinetic 189 | 8 98 33 . . 6 . 4 . 18 2 . . 20 Thermal 26 | . 12 . . . . . 14 . . . . . . Explosive 62 | . . 7 . . 21 . 1 . 3 . 13 . 17 Electromagnetic 240 | . . . . 61 157 2 1 . 15 . 1 . 3 Robot Hit Streak 12 | 3 12 3 . 8 11 3 5 . 4 3 5 . 6 Robot Miss Streak 6 | 1 5 6 . 4 5 . 3 . 4 . 1 . 5 Penetration Max . | . . . . . . . . . . . . . . Secondary Targets 4 | . 1 . . . 3 . . . . . . . . Max Gunslinging Chain 1 | . 1 . . . 1 . . . . . . . . Shots Hit Robots 302 | 5 57 17 . 48 110 2 10 . 21 2 13 . 17 Core Hits 241 | 3 29 27 . 30 81 . 8 . 17 2 16 . 28 Critical Hits 3 | . . . . . 2 . 1 . . . . . . Critical Kills 1 | . . . . . 1 . . . . . . . . Critical Parts Destroyed 1 | . . . . . . . 1 . . . . . . Melee Attacks 62 | . . . . . . . . . 35 19 8 . . Impact 15 | . . . . . . . . . 15 . . . . Slashing . | . . . . . . . . . . . . . . Piercing 47 | . . . . . . . . . 20 19 8 . . Sneak Attacks 4 | . . . . . . . . . 3 1 . . . Combat Hostiles . | . . . . . . . . . . . . . . Follow-up Attacks . | . . . . . . . . . . . . . . Damage Inflicted 11678 | 46 645 1310 . 874 3559 53 474 . 1169 156 1383 . 2009 Guns 2865 | 46 621 205 . 646 1188 . 159 . . . . . . Cannons 1514 | . . . . . 531 53 52 . 441 37 21 . 379 Explosions 6457 | . . 1105 . 228 1840 . 238 . 343 . 1073 . 1630 Melee 793 | . . . . . . . . . 385 119 289 . . Ramming 25 | . . . . . . . 25 . . . . . . Kinetic 1606 | 46 621 205 . . 92 . 74 . 201 37 . . 330 Thermal 755 | . 24 . . 228 366 . 137 . . . . . . Explosive 5863 | . . 1105 . . 1474 . 238 . 343 . 1073 . 1630 Electromagnetic 2636 | . . . . 646 1627 53 . . 240 . 21 . 49 Impact 90 | . . . . . . . . . 90 . . . . Slashing . | . . . . . . . . . . . . . . Piercing 703 | . . . . . . . . . 295 119 289 . . Highest Corruption 6 | . . . . . 2 . 3 3 5 5 5 5 6 Average Corruption 4 | . . . . . 2 . 2 3 1 5 5 5 5 Corruption Purged . | . . . . . . . . . . . . . . Effects 142 | . . . . . 13 . 12 1 4 36 25 2 49 Message Errors 37 | . . . . . 3 . 3 . . 7 7 1 16 Matter Fused 29 | . . . . . . . 3 1 . 10 7 . 8 Heat Flow Errors 13 | . . . . . 1 . 5 . . 3 3 . 1 Energy Discharges 14 | . . . . . 3 . . . 1 4 2 . 4 Parts Rejected 1 | . . . . . . . . . 1 . . . . Data Loss (minor) 27 | . . . . . 3 . 1 . 1 8 4 . 10 Data Loss (major) 9 | . . . . . . . . . . 2 2 1 4 Misfires 5 | . . . . . . . . . . 2 . . 3 Targeting Errors 7 | . . . . . 3 . . . 1 . . . 3 Overload Shots . | . . . . . . . . . . . . . . Overflow Damage 265 | . . 6 . 5 33 . 19 . 86 . 54 . 62 Projectiles 10 | . . . . . 4 . . . 6 . . . . Explosions 147 | . . 6 . 5 29 . 6 . 30 . 9 . 62 Melee 108 | . . . . . . . 13 . 50 . 45 . . Knockbacks 4 | . . . . . . . . . 2 . . . 2 Impact 1 | . . . . . . . . . 1 . . . . Kinetic 3 | . . . . . . . . . 1 . . . 2 Secondary . | . . . . . . . . . . . . . . Self-Inflicted Damage 370 | . . . . 25 131 . 44 . 116 . . . 54 Shots 8 | . . . . 1 3 . 1 . 2 . . . 1 Rammed 1 | . . . . . . . 1 . . . . . . Targets Rammed 1 | . . . . . . . 1 . . . . . . Kicked . | . . . . . . . . . . . . . . Crushed . | . . . . . . . . . . . . . . Highest Temperature 402 | . 80 . . 158 185 45 225 . 402 265 211 . 93 Average Temperature 67 | . 30 . . 53 45 27 98 . 128 114 83 . 56 Received Heat Transfer 1206 | . 36 . . 96 657 . 117 . 195 . 78 . 27 Effects 3 | . . . . . . . 1 . 2 . . . . Shutdowns 1 | . . . . . . . . . 1 . . . . Interference 1 | . . . . . . . 1 . . . . . . Damage (minor) 1 | . . . . . . . . . 1 . . . . Siege Activations . | . . . . . . . . . . . . . . Robots Corrupted 4 | . . . . . 3 . . . 1 . . . . Combat Hostiles 2 | . . . . . 1 . . . 1 . . . . Parts Fried 15 | . . . . 2 8 . . . 5 . . . . Impact Corruptions 4 | . . . . . . . 2 . 2 . . . . Robots Melted . | . . . . . . . . . . . . . . Combat Hostiles . | . . . . . . . . . . . . . . Parts Melted 1 | . . . . . . . 1 . . . . . . Heat Transferred 1059 | . 50 . . 350 437 . 222 . . . . . . Parts Sabotaged . | . . . . . . . . . . . . . . Parts Stolen . | . . . . . . . . . . . . . . Parts Stripped . | . . . . . . . . . . . . . . Power Chain Reactions 9 | . . . . 5 4 . . . . . . . . Missiles Intercepted . | . . . . . . . . . . . . . . Alert | -11 -10 -10 -10 -9 -8 -7 -7 -7 -6 -6 -6 -6 -5 ------- Run | Scr Mat Min Exi Min Mat Fac Low Low Fac Low Low Dat Pro Peak Influence 674 | 10 229 126 . 175 674 361 . . 592 . . . . Average Influence 265 | 4 128 78 . 85 401 321 . . 412 . . . . Maximum Alert Level 2 | . 1 . . . 2 1 . . 2 . . . . Low Security (%) 50 | 100 87 100 . 100 12 . . . 24 . . . . Level 1 19 | . 12 . . . 38 100 . . 4 . . . . Level 2 29 | . . . . . 49 . . . 71 . . . . Level 3 . | . . . . . . . . . . . . . . Level 4 . | . . . . . . . . . . . . . . Level 5 . | . . . . . . . . . . . . . . High Security . | . . . . . . . . . . . . . . Max Security . | . . . . . . . . . . . . . . Squads Dispatched 12 | . 1 . . . 5 3 . . 3 . . . . Investigation 5 | . . . . . 1 2 . . 2 . . . . Extermination 1 | . . . . . . . . . 1 . . . . Reinforcement 5 | . 1 . . . 3 1 . . . . . . . Assault 1 | . . . . . 1 . . . . . . . . Garrison . | . . . . . . . . . . . . . . Intercept . | . . . . . . . . . . . . . . Construction Impeded . | . . . . . . . . . . . . . . Haulers Reinforced 1 | . . . . . . 1 . . . . . . . Stealth | -11 -10 -10 -10 -9 -8 -7 -7 -7 -6 -6 -6 -6 -5 --------- Run | Scr Mat Min Exi Min Mat Fac Low Low Fac Low Low Dat Pro Distress Signals 5 | . 4 . . . 1 . . . . . . . . Communications Jammed . | . . . . . . . . . . . . . . Distress Signals . | . . . . . . . . . . . . . . Times Spotted 186 | . 27 29 . 8 55 3 9 . 20 1 9 . 25 Peak Tracking Total 17 | . 4 17 . 3 6 4 8 . 4 1 5 . 7 Tactical Retreats 29 | . 1 11 . . 5 . . . 3 1 2 . 6 Traps | -11 -10 -10 -10 -9 -8 -7 -7 -7 -6 -6 -6 -6 -5 ------- Run | Scr Mat Min Exi Min Mat Fac Low Low Fac Low Low Dat Pro Traps Triggered 6 | . 1 . . . 3 . . . 1 . 1 . . Indirectly . | . . . . . . . . . . . . . . Trap Hack Attempts . | . . . . . . . . . . . . . . Triggered . | . . . . . . . . . . . . . . Disarmed . | . . . . . . . . . . . . . . Reprogrammed . | . . . . . . . . . . . . . . Reused . | . . . . . . . . . . . . . . Traps Extracted . | . . . . . . . . . . . . . . Installed . | . . . . . . . . . . . . . . Triggered 6 | . . . . . . . . 1 1 . 2 . 2 Machines | -11 -10 -10 -10 -9 -8 -7 -7 -7 -6 -6 -6 -6 -5 ---------- Run | Scr Mat Min Exi Min Mat Fac Low Low Fac Low Low Dat Pro Machines Disabled 15 | . . 2 . 2 5 . . . 6 . . . . Max in Single Turn 2 | . . 1 . 2 1 . . . 2 . . . . Garrison Access 1 | . . . . . . 1 . . . . . . . Machines Sabotaged . | . . . . . . . . . . . . . . Garrisons Compromised . | . . . . . . . . . . . . . . Overloaded Fab Kills . | . . . . . . . . . . . . . . Fab Network Shutdowns 1 | . . . . . . . . . 1 . . . . Hacking | -11 -10 -10 -10 -9 -8 -7 -7 -7 -6 -6 -6 -6 -5 --------- Run | Scr Mat Min Exi Min Mat Fac Low Low Fac Low Low Dat Pro Machines Accessed 45 | . 7 1 . . 10 5 . . 17 . 1 4 . Terminals 29 | . 7 1 . . 7 2 . . 12 . . . . Fabricators 2 | . . . . . . 1 . . 1 . . . . Repair Stations 1 | . . . . . 1 . . . . . . . . Recycling Units 1 | . . . . . . . . . 1 . . . . Scanalyzers 6 | . . . . . 2 1 . . 3 . . . . Garrison Access 1 | . . . . . . 1 . . . . . . . Total Hacks 144 | . 23 1 . . 25 19 . . 49 . 1 26 . Successful 107 | . 11 1 . . 20 13 . . 35 . 1 26 . Failed 37 | . 12 . . . 5 6 . . 14 . . . . Catastrophic 7 | . 1 . . . 3 1 . . 2 . . . . Database Lockouts . | . . . . . . . . . . . . . . Manual 69 | . 21 1 . . 17 5 . . 25 . . . . Terminals 78 | . 23 1 . . 18 9 . . 27 . . . . Fabricators 4 | . . . . . . 2 . . 2 . . . . Repair Stations 4 | . . . . . 4 . . . . . . . . Recycling Units 1 | . . . . . . . . . 1 . . . . Scanalyzers 29 | . . . . . 3 7 . . 19 . . . . Garrison Access 1 | . . . . . . 1 . . . . . . . Terminal Hacks 41 | . 3 1 . . 5 1 . . 4 . 1 26 . Record 11 | . . . . . . . . . . . . 11 . Part Schematic 8 | . . 1 . . 1 . . . . . . 6 . Robot Schematic 6 | . . . . . . . . . . . . 6 . Prototype ID Bank 6 | . 1 . . . 1 . . . 1 . . 3 . Open Door 1 | . . . . . . . . . . . 1 . . Branch Access Points 1 | . . . . . . . . . 1 . . . . Terminal Index 4 | . 1 . . . 1 1 . . 1 . . . . Recycling Unit Index 1 | . . . . . 1 . . . . . . . . Recall Reinforcements 2 | . 1 . . . 1 . . . . . . . . Zone Layout 1 | . . . . . . . . . 1 . . . . Fabricator Hacks 2 | . . . . . . 1 . . 1 . . . . Load Schematic 1 | . . . . . . 1 . . . . . . . Build 1 | . . . . . . . . . 1 . . . . Repair Station Hacks 4 | . . . . . 4 . . . . . . . . Scan Component 2 | . . . . . 2 . . . . . . . . Repair 2 | . . . . . 2 . . . . . . . . Recycling Unit Hacks . | . . . . . . . . . . . . . . Scanalyzer 27 | . . . . . 2 7 . . 18 . . . . Insert Component 12 | . . . . . 1 3 . . 8 . . . . Analyze 15 | . . . . . 1 4 . . 10 . . . . Garrison Access Hacks 1 | . . . . . . 1 . . . . . . . Seal Access 1 | . . . . . . 1 . . . . . . . Unauthorized Hacks 80 | . 21 . . . 20 7 . . 32 . . . . Terminals 31 | . 8 . . . 9 3 . . 11 . . . . Track 6 | . 1 . . . 2 1 . . 2 . . . . Assimilate 2 | . 1 . . . . . . . 1 . . . . Botnet 19 | . 5 . . . 5 2 . . 7 . . . . Disrupt 1 | . . . . . 1 . . . . . . . . Operators 3 | . 1 . . . 1 . . . 1 . . . . Fabricators . | . . . . . . . . . . . . . . Repair Stations . | . . . . . . . . . . . . . . Recycling Units 1 | . . . . . . . . . 1 . . . . Tunnel 1 | . . . . . . . . . 1 . . . . Scanalyzers . | . . . . . . . . . . . . . . Garrison Access . | . . . . . . . . . . . . . . Data Cores Recovered . | . . . . . . . . . . . . . . Used . | . . . . . . . . . . . . . . Hacking Detections 35 | . 7 . . . 9 4 . . 15 . . . . Full Trace Events 2 | . 1 . . . . 1 . . . . . . . Feedback Events . | . . . . . . . . . . . . . . Feedback Blocked . | . . . . . . . . . . . . . . Robot Schematics Acquired 6 | . . . . . . . . . . . . 6 . Robots Built . | . . . . . . . . . . . . . . Matter . | . . . . . . . . . . . . . . Time . | . . . . . . . . . . . . . . Total Robot Build Rating . | . . . . . . . . . . . . . . Part Schematics Acquired 20 | . . 1 . . 2 3 . . 8 . . 6 . Parts Built 2 | . . . . . . . . . 2 . . . . Matter 190 | . . . . . . . . . 190 . . . . Time 47 | . . . . . . . . . 47 . . . . Total Part Build Rating 10 | . . . . . . . . . 10 . . . . Parts Repaired 2 | . . . . . 2 . . . . . . . . Time 64 | . . . . . 64 . . . . . . . . Parts Recycled . | . . . . . . . . . . . . . . Recycled Matter . | . . . . . . . . . . . . . . Retrieved Matter . | . . . . . . . . . . . . . . Retrieved Components . | . . . . . . . . . . . . . . Parts Scanalyzed 12 | . . . . . 1 3 . . 8 . . . . Part Schematics Acquired 12 | . . . . . 1 3 . . 8 . . . . Parts Damaged . | . . . . . . . . . . . . . . Bothacking | -11 -10 -10 -10 -9 -8 -7 -7 -7 -6 -6 -6 -6 -5 ------------ Run | Scr Mat Min Exi Min Mat Fac Low Low Fac Low Low Dat Pro Used RIF Installer . | . . . . . . . . . . . . . . Robots Hacked . | . . . . . . . . . . . . . . Non-combat . | . . . . . . . . . . . . . . Combat . | . . . . . . . . . . . . . . Robot Hacks Applied . | . . . . . . . . . . . . . . Relay Couplers Released 3 | . . . . . . . . . 3 . . . . Programmers 3 | . . . . . . . . . 3 . . . . Robots Rewired . | . . . . . . . . . . . . . . Allies Hacked . | . . . . . . . . . . . . . . Hacks Repelled . | . . . . . . . . . . . . . . Allies | -11 -10 -10 -10 -9 -8 -7 -7 -7 -6 -6 -6 -6 -5 -------- Run | Scr Mat Min Exi Min Mat Fac Low Low Fac Low Low Dat Pro Total Allies 3 | . 1 . . . . . . . 1 . . . 1 Largest Group 1 | . 1 1 . . . . . . 1 . . . 1 Highest-Rated Group 94 | . 10 9 . . . . . . 26 . . . 94 Highest-Rated Ally 94 | . 10 9 . . . . . . 26 . . . 94 Total Orders . | . . . . . . . . . . . . . . Ally Attacks 7 | . . . . . . . . . . . . . 7 Total Damage 287 | . . . . . . . . . . . . . 287 Kills . | . . . . . . . . . . . . . . Allies Corrupted . | . . . . . . . . . . . . . . Allies Melted . | . . . . . . . . . . . . . . Intel | -11 -10 -10 -10 -9 -8 -7 -7 -7 -6 -6 -6 -6 -5 ------- Run | Scr Mat Min Exi Min Mat Fac Low Low Fac Low Low Dat Pro Robot Analysis Total . | . . . . . . . . . . . . . . Derelict Logs Recovered 11 | . . 3 . 2 . . . 1 . 3 2 . . Drone Launches . | . . . . . . . . . . . . . . Drone Recoveries . | . . . . . . . . . . . . . . Exploration | -11 -10 -10 -10 -9 -8 -7 -7 -7 -6 -6 -6 -6 -5 ------------- Run | Scr Mat Min Exi Min Mat Fac Low Low Fac Low Low Dat Pro Turns Passed 11480 | 66 903 1033 222 746 1990 329 649 136 1244 1323 1161 83 1595 Spaces Moved 6246 | 44 625 806 196 567 1120 222 243 91 739 530 796 85 182 Core 88 | 6 . . . . 1 . . . . . . . 81 Treads . | . . . . . . . . . . . . . . Legs . | . . . . . . . . . . . . . . Wheels 4018 | 38 625 806 196 567 1119 222 243 91 111 . . . . Hover 2140 | . . . . . . . . . 628 530 796 85 101 Flight . | . . . . . . . . . . . . . . Fastest Speed 50 | 50 90 100 100 110 100 123 113 125 100 100 98 98 50 Average Speed 128 | 86 99 105 104 110 121 131 177 125 109 100 104 98 686 Slowest Speed 1950 | 100 110 120 110 110 1950 190 180 125 170 100 157 98 1400 Overloaded Moves . | . . . . . . . . . . . . . . Propulsion Burnouts . | . . . . . . . . . . . . . . Robots Hopped . | . . . . . . . . . . . . . . Cave-ins Triggered 1 | . . . . . . . . . 1 . . . . Exploration Rate (%) 53 | 3 86 99 53 94 85 7 45 14 27 67 77 70 25 Regions Visited 13 Branch Regions 9 Pre-discovered Areas 7 | . . 3 . . . . . 1 1 1 . 1 . Known Exits Taken 5 | . . . . . 1 . . . 1 1 1 1 . Unknown Exits Taken 8 | 1 1 1 1 1 . 1 1 1 . . . . . Scrap Searched 10 | . . 1 . 2 . . . 1 . 2 2 . 2 Spaces Dug 54 | . 11 . . . . . . . 24 14 5 . . Terrain Destroyed 474 | . 11 67 . 14 143 . 8 . 57 15 71 . 88 Melee 39 | . . . . . . . . . 20 14 5 . . Projectile 31 | . 11 . . . . . . . 9 1 . . 10 AOE 404 | . . 67 . 14 143 . 8 . 28 . 66 . 78 Actions | -11 -10 -10 -10 -9 -8 -7 -7 -7 -6 -6 -6 -6 -5 --------- Run | Scr Mat Min Exi Min Mat Fac Low Low Fac Low Low Dat Pro Total 9018 | 64 777 948 212 628 1564 256 436 113 1070 1285 1095 84 486 Wait 2043 | . 51 104 . 19 222 16 175 23 182 736 269 . 246 Move 6233 | 43 624 805 195 566 1119 221 242 90 738 529 795 84 182 Hop . | . . . . . . . . . . . . . . Pick Up 143 | 11 21 3 7 7 51 6 . . 29 . 2 . 6 Fast Attach . | . . . . . . . . . . . . . . Attach 59 | 6 3 1 . 2 14 3 . . 15 1 4 . 10 Detach 1 | . . . . . . . . . . . 1 . . Swap 86 | . 10 4 5 1 29 6 6 . 20 . 2 . 3 Drop 72 | . 7 3 5 2 25 3 . . 24 . . . 3 Fire 310 | 4 61 20 . 31 104 1 12 . 27 . 14 . 36 Melee 62 | . . . . . . . . . 35 19 8 . . Ram 1 | . . . . . . . 1 . . . . . . Kick . | . . . . . . . . . . . . . . Crush . | . . . . . . . . . . . . . . Escape Stasis . | . . . . . . . . . . . . . . Rewire 8 | . . 8 . . . . . . . . . . . Trap . | . . . . . . . . . . . . . . Miscellaneous . | . . . . . . . . . . . . . . Route ------- -11/Scrapyard -10/Materials (discovered 4 exits: [*Mat x2] / *Min x2) -10/Mines (discovered 3 exits: [*Mat x2] / [*Exi]) -10/Exiles -9/Mines (discovered 2 exits: *Mat x2) -8/Materials (discovered 5 exits: *Fac x3 / [*Sto x2]) -7/Factory -7/Lower Caves -7/Lower Caves -6/Factory (discovered 2 exits: *Low x2) -6/Lower Caves -6/Lower Caves (discovered 2 exits: [Fac] / *Dat) -6/Data Miner -5/Proximity Caves History --------- Turn | Location | Event 17 | -11/Scrapyard | Discovered new exit (range 16) 67 | -11/Scrapyard | Entered Materials 133 | -10/Materials | Discovered new exit (range 7) 204 | -10/Materials | Discovered new exit (range 12) 307 | -10/Materials | Build established: Mutant 569 | -10/Materials | Destroyed 7 combat bots 611 | -10/Materials | Discovered new exit (range 14) 664 | -10/Materials | Discovered new exit (range 16) 970 | -10/Materials | Entered Mines 970 | -10/Mines | Accompanied by 1 ally 1002 | -10/Mines | Learned location of Storage (-8) 1053 | -10/Mines | Assembled infested the area 1062 | -10/Mines | Core integrity fell below 50% 1497 | -10/Mines | Discovered new exit (range 13) 1541 | -10/Mines | Discovered new exit (range 5) 1582 | -10/Mines | Discovered new exit (range 8) 1599 | -10/Mines | Learned location of 2 exits from Materials 2003 | -10/Mines | Entered Exiles 2031 | -10/Exiles | Met 8R-AWN 2070 | -10/Exiles | Met EX-HEX 2152 | -10/Exiles | Met EX-DEC 2214 | -10/Exiles | Discovered new exit (range 12) 2225 | -10/Exiles | Entered Mines 2287 | -9/Mines | Discovered new exit (range 5) 2418 | -9/Mines | Build established: Hauler-Mutant 2447 | -9/Mines | Discovered new exit (range 12) 2538 | -9/Mines | Learned Materials emergency access door positions 2673 | -9/Mines | Learned Materials stockpile data 2971 | -9/Mines | Entered Materials 2971 | -8/Materials | Evolved 4 slots: Propulsion x1, Utility x3 2972 | -8/Materials | Identified exit to Factory 3859 | -8/Materials | Discovered new exit (range 15) 4303 | -8/Materials | Repaired Arm. Wheel 4336 | -8/Materials | Repaired Rocket Launcher 4559 | -8/Materials | Discovered new exit (range 16) 4571 | -8/Materials | First assault squad dispatched 4762 | -8/Materials | Lost 3 parts (1p1n1w) 4934 | -8/Materials | Discovered exit to Factory (range 14) 4961 | -8/Materials | Entered Factory 4961 | -7/Factory | Evolved 2 slots: Utility x2 5280 | -7/Factory | Discovered new exit (range 9) 5290 | -7/Factory | Entered Lower Caves 5929 | -7/Lower Caves | Discovered new exit (range 10) 5939 | -7/Lower Caves | Entered another Lower Caves area 5967 | -7/Lower Caves | Lost 3 parts (1n2w) 5970 | -7/Lower Caves | Learned location of Zion (-7) 6040 | -7/Lower Caves | Discovered new exit (range 5) 6075 | -7/Lower Caves | Entered Factory 6075 | -6/Factory | Evolved 2 slots: Power x1, Propulsion x1 6310 | -6/Factory | Fabricated Lgt. Fission Core (x2) 6375 | -6/Factory | Local fabrication network quarantined 6817 | -6/Factory | Identified exit to Lower Caves 6879 | -6/Factory | Spotted B-75 Beast 6961 | -6/Factory | Lost 4 parts (1p2n1w) 7286 | -6/Factory | Crushed by falling debris 7319 | -6/Factory | Entered Lower Caves 7323 | -6/Lower Caves | Learned 8 Factory zone layouts 7324 | -6/Lower Caves | Encountered a Warlord checkpoint 7345 | -6/Lower Caves | Learned Factory emergency access door positions 7587 | -6/Lower Caves | Build established: Hauler-Assassin 8215 | -6/Lower Caves | Discovered new exit (range 7) 8216 | -6/Lower Caves | Learned location of Extension (-5) 8221 | -6/Lower Caves | Identified exit to Lower Caves 8642 | -6/Lower Caves | Entered another Lower Caves area 8762 | -6/Lower Caves | Discovered new exit (range 10) 9257 | -6/Lower Caves | Spotted B-75 Beast 9424 | -6/Lower Caves | Lost 3 parts (1p1n1u) 9692 | -6/Lower Caves | Build established: Hauler-Mutant 9768 | -6/Lower Caves | Discovered new exit (range 17) 9795 | -6/Lower Caves | Learned Factory emergency access door positions 9800 | -6/Lower Caves | Identified exit to Data Miner 9803 | -6/Lower Caves | Entered Data Miner 9803 | -6/Data Miner | Discovered new exit (range 6) 9822 | -6/Data Miner | Met Data Miner 9844 | -6/Data Miner | Learned location of Section 7 (-2) 9844 | -6/Data Miner | Acquired the access code to Warlord's prototype stash 9859 | -6/Data Miner | Received God Mode back door access code from Data Miner 9885 | -6/Data Miner | Identified exit to Proximity Caves 9886 | -6/Data Miner | Entered Proximity Caves 9912 | -5/Proximity Caves | Attracted the attention of an 0b10 checkpoint 9915 | -5/Proximity Caves | Escorted by Enhanced Grunt 10211 | -5/Proximity Caves | Found Prototype Device 10212 | -5/Proximity Caves | Identified Exp. Thermal Shield 10276 | -5/Proximity Caves | Core integrity fell below 50% 10931 | -5/Proximity Caves | Core integrity fell below 20% 11481 | -5/Proximity Caves | Destroyed by S-27 Virus with Autogun Last Messages --------------- 11151_ N IM4 I1HP%NOI:CVI 9J=D4,I 11171_ 8:P|UT/6IB 11470_ S-27 Virus knocked back. 11472_ Lrn. Terrain Scanner destroyed. 11475_ Adv. Targeting Computer destroyed. 11476_ Antimatter Cannon destroyed. 11476_ System Shield destroyed. 11478_ Hvy. Pick destroyed. 11479_ Hacking Suite destroyed. 11479_ Dropped Hcp. Storage Unit. Map ----- +----------------------------------------------------+ | ###?##?###?###############?##?##???#?????????????? | | ??#######?#####?### ?####?##??#####?????????????? | | ###?############## ? ########?#?###??#?????????? | | ###?########??#### ? #############?##??????????? | | #########?### ?#?######## ?#??##?#??????? | | ###?### ? ### ##### ?????####?????? | | ######? ###?#?## ## #?###????????? | | ####### #""""""# #? ## ? #### ###?####?????? | | ##?##?# #? # # ### #### #####???##???? | | ###### # # ## ##### #### ########??????? | | ##?#? ?##+?### ## ####### ## ##########????? | | #### ? # ## ### ########?#???? | | ####? # # # ### #############? | | # ### ## ## ##### ########?####? | | ### #### ############## | | ## ######### ##### #############? | | ################ ###### #############? | | ############# ######## ############## | | ###### #### ## ################?#### | | ##### g #################### | | #### % ################# | | #### ################# | | ##### ### ## ################ | | ####### #### ## ################ | | ####### #### ################# | | ??## ### # @][s ################## | | ### ### ###### ]!!s ################# | | ### ####### #######![![s ################# | | #### ######### ######[! s ################# | | ######### ##### #######] s #"############## | | ######## ##### ########## ############## | | ####### ###### ####" ### ############ | | # ## ######## # " ############# | | ######## # [ ############# | | ######## # ############## | | ## ### #### ""#" ############# | | ### ### ####### ##"####" ;############# | | ## ### ############### "############## | | ? ## ### #### ########## ###### ####### | | #### #### #### #### ## ##### ####### | | ######### #### ## ##### ## ####### | | ######## ### ##### ####### | | ####### #### ##### ##### | | ? ####### #### ##### #### | | ?? ####### #### ## #### ###### | | ? ####### ### #### ##### ###### ### | | ?? ######## ############ ##### ### | | ? ######### ############ ###### ### | | ?? ######### ##### ###### ### | | ????#?####### #### ###### #?# | +----------------------------------------------------+ Best States ------------- Heat Dissipation 45 Energy Generation 31 Energy Capacity 265 Matter Stores 300 Matter Capacity 300 Sight Range 16 Robot Scan Range 16 Terrain Scan Range 24 Terrain Scan Density 85 Power Amplification 20 Additional Mass Support 9 Armor Coverage 450 Resistance: EM 25 Evasion (%) 42 Targeting Accuracy 8 Offensive Hacking 10 Defensive Hacking 10 Item Schematics ----------------- Wheel | -10/Mines | Hacked Adv. Terrain Scanner | -8/Materials | Hacked Hacking Suite | -8/Materials | Scanalyzed System Shield | -7/Factory | Scanalyzed Adv. Sensor Array | -7/Factory | Scanalyzed Gravmag System | -7/Factory | Scanalyzed Cloaking Device | -6/Factory | Scanalyzed Fission Core | -6/Factory | Scanalyzed Imp. Transmission Jammer | -6/Factory | Scanalyzed Adv. Targeting Computer | -6/Factory | Scanalyzed Antimatter Cannon | -6/Factory | Scanalyzed Power Amplifier | -6/Factory | Scanalyzed Imp. Particle Charger | -6/Factory | Scanalyzed Lgt. Fission Core | -6/Factory | Scanalyzed Combat Drone Bay | -6/Data Miner | Free Lgt. Regenerative Plating | -6/Data Miner | Free Exp. Flexi-carbon Leg | -6/Data Miner | Free Exp. Cesium-ion Thruster | -6/Data Miner | Free Exp. Terrain Scanner | -6/Data Miner | Free Exp. Transmission Jammer | -6/Data Miner | Free Robot Schematics ------------------ S-27 Virus | -6/Data Miner | Free G-50 Soldier | -6/Data Miner | Free P-70 Sage | -6/Data Miner | Free I-36 Angel | -6/Data Miner | Free I-47 Archangel | -6/Data Miner | Free L-41 Fighter | -6/Data Miner | Free Fabricated ------------ Lgt. Fission Core | x2 | -6/Factory | Preloaded Alien Tech Used ----------------- None Achievements -------------- None Challenges ------------ None Game ------ Seed LinearModifiedMatter Manual? 0 Play Time 01:24:55 Cumulative 170.0 hours Start 2019.11.14 @ 18:47:11 End 2019.11.14 @ 20:14:28 Sessions 1 Manual Loads 0 Difficulty Rogue Special Mode None Game No. 244 Rogue 244 Adventurer 0 Explorer 0 Win Type - Total 1 Types 1/0/0/0/0/0/0 Lore% 48 Gallery% 67 Achievement% 42 Wizard Run 0 Options --------- ASCII 0 Keyboard 0 Movement Numpad Keybinds 0 Fullscreen 1 Font 16/Terminus Map View 75x55 Tactical HUD 1 Map Filters NONE Filters NONE Steam 1 RUN: eec74de5-ae12-48a0-8814-ac65a2d63ed6